fUST/lending_fUST_20240529
["ID","MTS","AMOUNT","RATE_DAILY","PERIOD"]
[328161887,1716970244013,-6264.83,0.0003489,3]
[328161888,1716970244023,-5220.69,0.0003489,3]
[328161889,1716970244032,-27006.18795794,0.000349,5]
[328161890,1716970244079,-0.00237815,0.000349,5]
[328161937,1716970246162,-599.81861337,0.000349,5]
[328161939,1716970246250,-61281.99105054,0.000349,5]
[328161940,1716970246261,-9455.86308827,0.00034963,5]
[328161941,1716970246271,-364.52992769,0.0003499,4]
[328161942,1716970246281,-299.7786707,0.0003499,4]
[328161943,1716970246290,-486.12675091,0.00034998,4]
[328161944,1716970246299,-1382.13546114,0.00034998,4]
[328161945,1716970246309,-4699.30029575,0.00034998,2]
[328161946,1716970246319,-154.87609912,0.00034998,4]
[328161947,1716970246328,-154.87609912,0.00034998,4]
[328161948,1716970246337,-1022.44044368,0.00035,7]
[328161949,1716970246346,-79588.80433714,0.00035,30]
[328161950,1716970246900,-6468.02460122,0.00035,30]
[328161951,1716970256376,273.37336231,9.9e-05,2]
[328161952,1716970264280,273.37336231,9.9e-05,2]
[328161953,1716970273562,273.37336231,9.9e-05,2]
[328161954,1716970281524,273.37336231,9.9e-05,2]
[328161955,1716970289648,273.37336231,9.9e-05,2]
[328161956,1716970297537,273.37336231,9.9e-05,2]
[328161957,1716970306454,27.11220109,9.9e-05,2]
[328161958,1716970306476,246.26116122,9.9e-05,2]
[328161959,1716970313817,741.14395964,9.999e-05,2]
[328161960,1716970315061,273.37336231,9.9e-05,2]
[328161961,1716970323592,420.62037463,9.899e-05,2]
[328161962,1716970665138,199.61289117,9.899e-05,2]
[328162000,1716971244203,-1303.62400363,9.999e-05,2]
[328162001,1716971244223,-113.06066121,0.00020913,2]
[328162002,1716971251111,-421.21358165,0.00020913,2]
[328162037,1716971434062,-715.13987329,0.00020913,2]
[328162086,1716971438861,-314.47399217,0.00020913,2]
[328162235,1716971441612,-553.5041584,0.00020913,2]
[328162236,1716971441622,-199.916334,0.00021319,2]
[328162237,1716971441631,-166.666666,0.00021918,2]
[328162238,1716971441641,-166.666666,0.00022431,2]
[328162239,1716971441650,-5916.67718906,0.00022573,2]
[328162259,1716971448576,-1209.9709819,0.00022573,2]
[328162273,1716972426143,-748.69936183,0.00020913,2]
[328162274,1716972439180,-461.05978836,0.00020913,2]
[328162275,1716972442207,-907.63311653,0.00020913,2]
[328162276,1716972442226,-92.36688347,0.00022336,2]
[328162277,1716972451113,-985.85680298,0.00022336,2]
[328162292,1716972577131,962.86659755,0.0002,2]
[328162293,1716972577152,942.19662856,0.0002,2]
[328162296,1716972604677,273.37336231,9.9e-05,2]
[328162307,1716972632621,-328.598071,0.0002,7]
[328162375,1716972638685,-245.82519325,0.00019999,2]
[328162378,1716972638695,-500.0,0.00019999,2]
[328162380,1716972638705,-500.0,0.00019999,2]
[328162382,1716972638714,-500.0,0.00019999,2]
[328162384,1716972638724,-500.0,0.00019999,2]
[328162386,1716972638733,-500.0,0.00019999,2]
[328162387,1716972638743,-500.0,0.00019999,2]
[328162389,1716972638752,-500.0,0.00019999,2]
[328162391,1716972638762,-324.34696902,0.00019999,2]
[328162393,1716972638771,-500.0,0.00019999,2]
[328162395,1716972638781,-500.0,0.00019999,2]
[328162397,1716972638790,-500.0,0.00019999,2]
[328162400,1716972638800,-500.0,0.00019999,2]
[328162402,1716972638809,-182.62215084,0.0002,7]
[328162404,1716972638818,-24138.48770407,0.0002,2]
[328162406,1716972638831,-2026.09686994,0.0002,2]
[328162408,1716972638842,-918.65065057,0.0002,2]
[328162535,1716972665286,273.37336231,9.9e-05,2]
[328162536,1716972673478,248.90652532,9.9e-05,2]
[328162537,1716972673656,164.33784746,9.999e-05,2]
[328162538,1716972714308,25.8502319,9.999e-05,2]
[328162539,1716972714332,130.78251687,9.999e-05,2]
[328162540,1716972730492,281.91842462,9.999e-05,2]
[328162557,1716973633307,-156.63274877,9.999e-05,2]
[328162558,1716973633329,-1890.5666411,0.00018323,2]
[328162559,1716973633353,-173.668543,0.00018453,2]
[328162560,1716973633376,-19744.3265045,0.00018615,2]
[328162567,1716973683816,273.37336231,9.9e-05,2]
[328162616,1716973746230,-5155.6734955,0.00018615,2]
[328162617,1716973746250,-1828.0178435,0.00018845,2]
[328162618,1716973746269,-169.586474,0.00019178,2]
[328162619,1716973746290,-199.5681448,0.00019899,2]
[328162620,1716973746311,-155.38644567,0.00019899,2]
[328162621,1716973746331,-281.64721299,0.00019998,2]
[328162622,1716973746351,-501.51755121,0.00019998,2]
[328162623,1716973746370,-156.23573304,0.00019998,2]
[328162624,1716973746390,-1340.40220178,0.00019999,2]
[328162625,1716973746410,-10520.83000552,0.00019999,2]
[328162626,1716973746430,-155.0,0.00019999,2]
[328162627,1716973746451,-155.18340364,0.00019999,2]
[328162628,1716973746471,-155.0,0.00019999,2]
[328162629,1716973746490,-207.0292065,0.00019999,2]
[328162630,1716973746509,-410.95040232,0.00019999,2]
[328162631,1716973746528,-214.6407941,0.00019999,2]
[328162632,1716973746547,-28867.17276072,0.00019999,2]
[328162633,1716973746570,-500.0,0.00019999,2]
[328162634,1716973746593,-218.1135597,0.00019999,2]
[328162635,1716973746614,-500.0,0.00019999,2]
[328162636,1716973746633,-255.61011092,0.0002,7]
[328162637,1716973746654,-85769.91294679,0.0002,2]
[328162638,1716973747160,-6378.26955645,0.0002,2]
[328162639,1716973747183,-154.84515485,0.0002,2]
[328162640,1716973747203,-11523.7015873,0.0002,3]
[328162641,1716973749209,-87390.50836222,0.0002,3]
[328162642,1716973749230,-461.34904634,0.00021,2]
[328162643,1716973749251,-377.37091221,0.00021917,2]
[328162644,1716973749271,-500.0,0.00021917,2]
[328162645,1716973749291,-586.04754897,0.00021917,2]
[328162646,1716973749312,-500.0,0.00021917,2]
[328162647,1716973749332,-500.0,0.00021917,2]
[328162648,1716973749352,-500.0,0.00021917,2]
[328162649,1716973749372,-500.0,0.00021917,2]
[328162650,1716973749391,-500.0,0.00021917,2]
[328162651,1716973749411,-1000.0,0.00021917,5]
[328162652,1716973749430,-500.0,0.00021917,2]
[328162653,1716973749453,-500.0,0.00021917,2]
[328162654,1716973749473,-500.0,0.00021917,2]
[328162655,1716973749494,-524.43466535,0.00021917,2]
[328162656,1716973749514,-166.666666,0.00021918,2]
[328162657,1716973749534,-4229.78307947,0.00021921,2]
[328162658,1716973749553,-172.32,0.00022191,2]
[328162659,1716973749572,-500.0,0.00022191,2]
[328162660,1716973749590,-903.82939479,0.00022344,2]
[328162661,1716973749610,-166.666666,0.00022431,2]
[328162662,1716973749630,-500.0,0.00022465,2]
[328162663,1716973749650,-172.698365,0.0002247,2]
[328162664,1716973749670,-500.0,0.00022739,2]
[328162665,1716973749691,-166.666666,0.00022944,2]
[328162666,1716973749711,-500.0,0.00023013,2]
[328162667,1716973749738,-294.4217268,0.00023287,2]
[328162668,1716973750173,-205.5782732,0.00023287,2]
[328162669,1716973750196,-166.666666,0.00023456,2]
[328162670,1716973750218,-634.19146974,0.00023461,2]
[328162671,1716973750239,-500.0,0.00023561,2]
[328162672,1716973750259,-151.0,0.00023561,2]
[328162673,1716973750280,-610.496674,0.00023561,2]
[328162674,1716973750301,-610.496674,0.00023561,2]
[328162675,1716973750321,-151.0,0.00023561,2]
[328162676,1716973750341,-151.0,0.00023561,2]
[328162677,1716973750361,-151.0,0.00023561,2]
[328162678,1716973750381,-151.0,0.00023561,2]
[328162679,1716973750401,-500.0,0.00023835,2]
[328162680,1716973750421,-166.666666,0.00023969,2]
[328162681,1716973750444,-500.0,0.00024109,2]
[328162682,1716973750464,-200.0,0.0002411,2]
[328162683,1716973750485,-500.0,0.00024383,2]
[328162684,1716973750505,-237.697678,0.00024384,2]
[328162685,1716973750525,-750.0,0.00024384,2]
[328162686,1716973750545,-166.666666,0.00024482,2]
[328162687,1716973750564,-620.70957349,0.00024634,2]
[328162688,1716973750583,-500.0,0.00024657,2]
[328162689,1716973750604,-299.88834079,0.00024931,4]
[328162690,1716973750624,-401.35997023,0.00025,2]
[328162691,1716973750643,-749.05667984,0.000275,17]
[328162692,1716973750662,-578.87410953,0.00027994,4]
[328162693,1716973750682,-500.0,0.00027994,4]
[328162694,1716973750702,-382.55102165,0.00027994,4]
[328162695,1716973750724,-500.0,0.00027994,4]
[328162696,1716973750744,-150.0,0.00027994,4]
[328162697,1716973750764,-172.48640753,0.00028,2]
[328162698,1716973751142,-169.19296922,0.00028,2]
[328162699,1716973755113,-2393.650208,0.00023561,2]
[328162700,1716973755136,-272.0765471,0.00028,2]
[328162701,1716973755157,-2091.43127022,0.00028,2]
[328162702,1716973755178,-224.70364529,0.00028,2]
[328162703,1716973755201,-3982.37422665,0.00028,2]
[328162704,1716973755222,-221.89275894,0.00028,2]
[328162705,1716973755243,-251.85,0.00028268,4]
[328162706,1716973755265,-155.38644566,0.00029062,2]
[328162707,1716973755285,-242.0,0.0003,2]
[328162708,1716973755305,-302.4250536,0.0003,3]
[328162709,1716973755326,-237.697678,0.0003031,2]
[328162710,1716973755349,-750.0,0.0003031,2]
[328162711,1716973755369,-300.0,0.00031,4]
[328162712,1716973756690,151.0,0.00023561,2]
[328162713,1716973756778,2393.650208,0.00023561,2]
[328162714,1716973757021,151.0,0.00029062,2]
[328162715,1716973758330,858.690773,0.00023561,2]
[328162716,1716973759075,151.0,0.00023561,2]
[328162717,1716973762170,858.690773,0.00023561,2]
[328162726,1716973770417,151.0,0.00023561,2]
[328162727,1716973770808,151.0,0.00029062,2]
[328162728,1716973780268,151.0,0.00023561,2]
[328162729,1716973780617,151.0,0.00029062,2]
[328162732,1716973801324,184.217724,0.00023561,2]
[328162733,1716973801699,184.217724,0.00029062,2]
[328162734,1716973802884,273.37336231,9.9e-05,2]
[328162735,1716973805845,184.217724,0.00023561,2]
[328162736,1716973806947,184.217724,0.00029062,2]
[328162737,1716973808345,166.666666,0.00026257,2]
[328162738,1716973808600,166.666666,0.00026972,2]
[328162739,1716973808840,166.666666,0.00027688,2]
[328162740,1716973809204,166.666666,0.00028404,2]
[328162741,1716973809428,166.666666,0.0002912,2]
[328162742,1716973809648,166.666666,0.00029836,2]
[328162743,1716973811535,273.37336231,9.9e-05,2]
[328162744,1716973816580,619.074062,0.00023561,2]
[328162745,1716973816902,619.074062,0.00029062,2]
[328162746,1716973818375,23689.72454119,0.00026118,2]
[328162747,1716973819920,273.37336231,9.9e-05,2]
[328162748,1716973828390,273.37336231,9.9e-05,2]
[328162751,1716973832856,-619.074062,0.00023561,2]
[328162752,1716973832866,-1210.27545881,0.00026118,2]
[328162753,1716973832875,-619.074062,0.00029062,2]
[328162754,1716973832886,-1213.75733884,0.00030519,2]
[328162755,1716973832895,-539.25523831,0.00031251,4]
[328162756,1716973832905,-500.0,0.00031999,2]
[328162757,1716973832915,-500.0,0.00031999,2]
[328162758,1716973832925,-228.64384004,0.00031999,2]
[328162759,1716973837164,273.37336231,9.9e-05,2]
[328162816,1716973839846,-271.35615996,0.00031999,2]
[328162818,1716973839857,-612.73815862,0.00031999,2]
[328162820,1716973839867,-364.52992769,0.00032,4]
[328162822,1716973839877,-2304.07934434,0.00032,2]
[328162824,1716973839886,-300.0,0.00032,5]
[328162826,1716973839896,-21327.0,0.00032,2]
[328162828,1716973839905,-1011.0,0.00032,120]
[328162830,1716973839914,-151.0,0.00032,2]
[328162832,1716973839924,-151.0,0.00032,2]
[328162834,1716973839934,-610.496674,0.00032,2]
[328162836,1716973839943,-610.496674,0.00032,2]
[328162838,1716973839952,-610.496674,0.00032,2]
[328162840,1716973839962,-610.496674,0.00032,2]
[328162842,1716973839972,-151.0,0.00032,2]
[328162844,1716973839981,-151.0,0.00032,2]
[328162846,1716973839991,-151.0,0.00032,2]
[328162847,1716973840001,-151.0,0.00032,2]
[328162848,1716973840012,-151.0,0.00032,2]
[328162849,1716973840022,-151.0,0.00032,2]
[328162850,1716973840031,-151.0,0.00032,2]
[328162851,1716973840040,-151.0,0.00032,2]
[328162852,1716973840050,-2393.650208,0.00032,2]
[328162853,1716973840061,-2393.650208,0.00032,2]
[328162854,1716973840071,-2393.650208,0.00032,2]
[328162855,1716973840082,-2393.650208,0.00032,2]
[328162856,1716973840092,-151.0,0.00032,2]
[328162857,1716973840102,-858.690773,0.00032,2]
[328162858,1716973840112,-73.41810839,0.00032,2]
[328162859,1716973840125,-785.27266461,0.00032,2]
[328162860,1716973840135,-858.690773,0.00032,2]
[328162861,1716973840145,-858.690773,0.00032,2]
[328162862,1716973840155,-151.0,0.00032,2]
[328162863,1716973840165,-151.0,0.00032,2]
[328162864,1716973840175,-184.217724,0.00032,2]
[328162866,1716973840185,-184.217724,0.00032,2]
[328162867,1716973840194,-619.074062,0.00032,2]
[328162869,1716973840204,-619.074062,0.00032,2]
[328162871,1716973840214,-449.01034019,0.00032,4]
[328162873,1716973840223,-2280.18,0.00032896,3]
[328162875,1716973840233,-4155.66,0.00032896,3]
[328162877,1716973840242,-3463.05,0.00032896,3]
[328162879,1716973840254,-298.1284669,0.00032904,4]
[328162881,1716973840265,-154.89156971,0.00032904,4]
[328162883,1716973840274,-741.14395964,0.00032904,4]
[328162885,1716973840284,-151.0,0.00032905,2]
[328162887,1716973840293,-151.0,0.00032905,2]
[328162889,1716973840303,-274.831279,0.00032905,2]
[328162891,1716973840312,-13923.86999424,0.00032906,2]
[328162893,1716973840326,-5872.39433229,0.00032906,2]
[328162949,1716973842558,-5203.73567347,0.00032906,2]
[328162951,1716973842568,-923.434148,0.00032906,2]
[328162952,1716973842577,-923.434148,0.00032906,2]
[328162953,1716973842586,-151.0,0.00032906,2]
[328162954,1716973842596,-151.0,0.00032906,2]
[328162955,1716973842605,-1058.792869,0.00032906,2]
[328162956,1716973842614,-734.072324,0.00032906,2]
[328162957,1716973842624,-1058.792869,0.00032906,2]
[328162958,1716973842633,-151.0,0.00032906,2]
[328162959,1716973842642,-734.072324,0.00032906,2]
[328162960,1716973842652,-151.0,0.00032906,2]
[328162961,1716973842661,-151.0,0.00032906,2]
[328162962,1716973842671,-151.0,0.00032906,2]
[328162963,1716973842680,-151.0,0.00032906,2]
[328162964,1716973842690,-323.595299,0.00032906,2]
[328162965,1716973842699,-323.595299,0.00032906,2]
[328162966,1716973842709,-151.0,0.00032906,2]
[328162967,1716973842718,-151.0,0.00032906,2]
[328162968,1716973842727,-277.278168,0.00032906,2]
[328162969,1716973842737,-277.278168,0.00032906,2]
[328162970,1716973842748,-151.0,0.00032906,2]
[328162971,1716973842760,-782.749561,0.00032906,2]
[328162972,1716973842769,-620.86896954,0.00032906,2]
[328162985,1716973844998,273.37336231,9.9e-05,2]
[328162994,1716973861504,273.37336231,9.9e-05,2]
[328162995,1716973870754,161.27571642,9.9e-05,2]
[328162996,1716973870803,224.73843168,9.9e-05,2]
[328162997,1716973870988,3376.24664759,9.9e-05,2]
[328162998,1716973875277,16220.09022824,9.9e-05,2]
[328162999,1716973939224,273.37336231,9.9e-05,2]
[328163000,1716973947195,273.37336231,9.9e-05,2]
[328163001,1716973954747,299.7786707,9.9e-05,2]
[328163002,1716973955340,151.0,9.9e-05,2]
[328163004,1716974741151,-1314.70983392,9.994e-05,2]
[328163005,1716974741171,-1232.10052177,9.995e-05,2]
[328163006,1716974837135,-159.22743012,9.997e-05,2]
[328163007,1716974839175,-1667.35237495,9.997e-05,2]
[328163008,1716974845102,-290.81246165,9.997e-05,2]
[328163009,1716974845122,-696.59265921,9.998e-05,2]
[328163010,1716974847103,-386.91951595,9.998e-05,2]
[328163011,1716974847126,-302.8227451,0.00014206,2]
[328163012,1716974847151,-622.0963912,0.00014682,2]
[328163013,1716974847171,-104.84601259,0.00015047,2]
[328163014,1716974854310,-421.217252,0.00015047,2]
[328163015,1716974949109,-5027.84140601,0.00015047,2]
[328163016,1716974949130,-155.53793537,0.00017798,2]
[328163017,1716974949153,-252.8262049,0.00017798,2]
[328163018,1716974949188,-34618.06929889,0.00017897,2]
[328163019,1716974949216,-10467.73009416,0.00017898,2]
[328163020,1716974949238,-9003.0130355,0.00017945,2]
[328163021,1716974962112,-172.698365,0.00019178,2]
[328163022,1716974962132,-500.0,0.00020906,2]
[328163023,1716974962153,-394.07286823,0.00020906,2]
[328163024,1716974962176,-390.8375504,0.00020906,2]
[328163025,1716974962201,-624.06013761,0.00020906,2]
[328163026,1716974962225,-500.0,0.00020906,2]
[328163027,1716974962246,-480.0,0.00020906,2]
[328163028,1716974962269,-500.0,0.00020906,2]
[328163029,1716974962294,-185.47700865,0.00020906,2]
[328163030,1716974962317,-500.0,0.00020906,2]
[328163031,1716974962337,-209.58134934,0.00020906,2]
[328163032,1716974962360,-500.0,0.00020906,2]
[328163033,1716974962384,-500.0,0.00020906,2]
[328163034,1716974962407,-500.0,0.00020906,2]
[328163035,1716974962429,-500.0,0.00020906,2]
[328163036,1716974962452,-500.0,0.00020906,2]
[328163037,1716974962477,-500.0,0.00020906,2]
[328163038,1716974962502,-500.0,0.00020906,2]
[328163039,1716974962525,-500.0,0.00020906,2]
[328163040,1716974962548,-500.0,0.00020906,2]
[328163041,1716974962571,-500.0,0.00020906,2]
[328163042,1716974962594,-500.0,0.00020906,2]
[328163043,1716974962617,-500.0,0.00020906,2]
[328163044,1716974962641,-500.0,0.00020906,2]
[328163045,1716974962663,-500.0,0.00020906,2]
[328163046,1716974962686,-500.0,0.00020906,2]
[328163047,1716974962708,-500.0,0.00020906,2]
[328163048,1716974962734,-500.0,0.00020906,2]
[328163049,1716974962756,-500.0,0.00020906,2]
[328163050,1716974962779,-500.0,0.00020906,2]
[328163051,1716974962802,-500.0,0.00020906,2]
[328163052,1716974962825,-500.0,0.00020906,2]
[328163053,1716974962847,-500.0,0.00020906,2]
[328163054,1716974962868,-442.59247105,0.00020906,2]
[328163055,1716974962891,-500.0,0.00020906,2]
[328163056,1716974962914,-500.0,0.00020906,2]
[328163057,1716974962938,-500.0,0.00020906,2]
[328163058,1716974962960,-500.0,0.00020906,2]
[328163059,1716974962982,-500.0,0.00020906,2]
[328163060,1716974963004,-500.0,0.00020906,2]
[328163061,1716974963028,-500.0,0.00020906,2]
[328163062,1716974963050,-500.0,0.00020906,2]
[328163063,1716974963072,-500.0,0.00020906,2]
[328163064,1716974963094,-500.0,0.00020906,2]
[328163065,1716974963119,-500.0,0.00020906,2]
[328163066,1716974963141,-500.0,0.00020906,2]
[328163067,1716974963164,-500.0,0.00020906,2]
[328163068,1716974963188,-500.0,0.00020906,2]
[328163069,1716974963215,-500.0,0.00020906,2]
[328163070,1716974963240,-500.0,0.00020906,2]
[328163071,1716974963263,-228.16877857,0.00020906,2]
[328163072,1716974963286,-500.0,0.00020906,2]
[328163073,1716974963310,-500.0,0.00020906,2]
[328163074,1716974963337,-500.0,0.00020906,2]
[328163075,1716974963359,-500.0,0.00020906,2]
[328163076,1716974963382,-500.0,0.00020906,2]
[328163077,1716974963406,-500.0,0.00020906,2]
[328163078,1716974963431,-500.0,0.00020906,2]
[328163079,1716974963454,-500.0,0.00020906,2]
[328163080,1716974963478,-500.0,0.00020906,2]
[328163081,1716974963501,-500.0,0.00020906,2]
[328163082,1716974963524,-350.0,0.00020906,2]
[328163083,1716974963547,-500.0,0.00020906,2]
[328163084,1716974963570,-500.0,0.00020906,2]
[328163085,1716974963593,-500.0,0.00020906,2]
[328163086,1716974963617,-500.0,0.00020906,2]
[328163087,1716974963640,-500.0,0.00020906,2]
[328163088,1716974963663,-500.0,0.00020906,2]
[328163089,1716974963684,-1382.13546114,0.00021,2]
[328163090,1716974963705,-151.849988,0.00021917,2]
[328163091,1716974963728,-501.68562485,0.00021917,2]
[328163092,1716974963749,-501.62569163,0.00021917,2]
[328163093,1716974963771,-500.0,0.00021917,2]
[328163094,1716974963792,-500.0,0.00021917,2]
[328163095,1716974963815,-504.83571561,0.00021917,2]
[328163096,1716974963836,-502.08672664,0.00021917,2]
[328163097,1716974963858,-509.47440859,0.00021917,2]
[328163098,1716974963878,-500.0,0.00021917,2]
[328163099,1716974963900,-503.54556447,0.00021917,2]
[328163100,1716974963922,-502.94015054,0.00021917,2]
[328163101,1716974963943,-495.53466221,0.00021917,2]
[328163102,1716974963967,-508.25312115,0.00021917,2]
[328163103,1716974963990,-503.94109821,0.00021917,2]
[328163104,1716974964011,-504.62782839,0.00021917,2]
[328163105,1716974964034,-500.80071715,0.00021917,2]
[328163106,1716974964055,-501.74478104,0.00021917,2]
[328163107,1716974964076,-504.11614555,0.00021917,2]
[328163108,1716974964096,-557.30382206,0.00021917,2]
[328163109,1716974964122,-505.83302534,0.00021917,2]
[328163110,1716974964143,-507.97558312,0.00021917,2]
[328163111,1716974964166,-505.69274832,0.00021917,2]
[328163112,1716974964188,-501.310757,0.00021917,2]
[328163113,1716974964208,-250.0,0.00021917,2]
[328163114,1716974964232,-500.0,0.00021917,2]
[328163115,1716974964253,-504.80355456,0.00021917,2]
[328163116,1716974964276,-500.0,0.00021917,2]
[328163117,1716974964296,-501.77170878,0.00021917,2]
[328163118,1716974964316,-503.74711031,0.00021917,2]
[328163119,1716974964338,-500.0,0.00021917,2]
[328163120,1716974964358,-166.666666,0.00021918,2]
[328163121,1716974964379,-252.82620487,0.00022025,2]
[328163122,1716974964399,-166.666666,0.00022431,2]
[328163123,1716974964420,-500.0,0.00022465,2]
[328163124,1716974964441,-628.09539684,0.00022739,2]
[328163125,1716974964463,-166.666666,0.00022944,2]
[328163126,1716974964486,-4699.30029575,0.00023,2]
[328163127,1716974964507,-166.666666,0.00023456,2]
[328163128,1716974964528,-166.666666,0.00023969,2]
[328163129,1716974964549,-743.134697,0.00024384,2]
[328163130,1716974964571,-213.92791,0.00024384,2]
[328163131,1716974964592,-166.666666,0.00024482,2]
[328163132,1716974964613,-424.94081074,0.00024678,2]
[328163133,1716974964633,-486.12675091,0.00025,2]
[328163134,1716974964655,-401.35997023,0.00025,2]
[328163135,1716974964677,-252.82620487,0.00026252,2]
[328163136,1716974964699,-3000.0,0.000265,2]
[328163137,1716974964720,-3000.0,0.0002651,2]
[328163138,1716974964741,-3000.0,0.0002652,2]
[328163139,1716974964762,-3000.0,0.0002653,2]
[328163140,1716974964784,-3000.0,0.0002654,2]
[328163141,1716974964805,-3000.0,0.0002655,2]
[328163142,1716974964826,-3000.0,0.0002656,2]
[328163143,1716974964971,-427.347672,0.0002656,2]
[328163144,1716974964998,-427.347672,0.0002656,2]
[328163145,1716974965021,-151.0,0.0002656,2]
[328163146,1716974965042,-151.0,0.0002656,2]
[328163147,1716974965063,-151.0,0.0002656,2]
[328163148,1716974965085,-151.0,0.0002656,2]
[328163149,1716974965106,-1675.555146,0.0002656,2]
[328163150,1716974965130,-1675.555146,0.0002656,2]
[328163151,1716974965152,-601.083541,0.0002656,2]
[328163152,1716974965174,-3000.0,0.0002657,2]
[328163153,1716974965197,-6597.01,0.0002657,3]
[328163154,1716974965220,-5355.067435,0.0002658,2]
[328163155,1716974965241,-3406.224679,0.0002658,2]
[328163156,1716974965265,-3406.224679,0.0002658,2]
[328163157,1716974965287,-2434.95,0.0002658,2]
[328163158,1716974965309,-2434.95,0.0002658,2]
[328163159,1716974965330,-1057.823872,0.0002658,2]
[328163160,1716974965352,-1057.823872,0.0002658,2]
[328163161,1716974965373,-151.999598,0.0002658,2]
[328163162,1716974965394,-151.0,0.0002658,2]
[328163163,1716974965415,-427.347672,0.00027,2]
[328163164,1716974965437,-427.347672,0.00027,2]
[328163165,1716974965459,-151.0,0.00027,2]
[328163166,1716974965482,-151.0,0.00027,2]
[328163167,1716974965503,-151.0,0.00027,2]
[328163168,1716974965525,-151.0,0.00027,2]
[328163169,1716974965547,-1675.555146,0.00027,2]
[328163170,1716974965568,-1675.555146,0.00027,2]
[328163171,1716974965588,-601.083541,0.00027,2]
[328163172,1716974965608,-174.74267377,0.000274,2]
[328163173,1716974965629,-221.89275894,0.00029896,2]
[328163174,1716974965649,-7054.01953135,0.00029897,2]
[328163175,1716974965669,-1057.823872,0.00029898,2]
[328163176,1716974965689,-1057.823872,0.00029898,2]
[328163177,1716974965710,-151.0,0.00029898,2]
[328163178,1716974965732,-712.568635,0.00029899,2]
[328163179,1716974965753,-151.0,0.00029899,2]
[328163180,1716974965775,-712.568635,0.00029899,2]
[328163181,1716974965796,-151.0,0.00029899,2]
[328163182,1716974965817,-151.0,0.00029899,2]
[328163183,1716974965840,-1046.749576,0.00029899,2]
[328163184,1716974965862,-1046.749576,0.00029899,2]
[328163185,1716974965882,-1689.35750274,0.00029908,2]
[328163186,1716974965903,-3406.224679,0.00029909,2]
[328163187,1716974965924,-3406.224679,0.00029909,2]
[328163188,1716974965945,-2434.95,0.00029909,2]
[328163189,1716974965965,-2434.95,0.00029909,2]
[328163190,1716974965988,-151.0,0.00029919,2]
[328163191,1716974966009,-151.0,0.00029919,2]
[328163192,1716974966028,-151.0,0.00029919,2]
[328163193,1716974966048,-291.235769,0.00029919,2]
[328163194,1716974966067,-291.235769,0.00029919,2]
[328163195,1716974966086,-1057.823872,0.00029919,2]
[328163196,1716974966108,-1057.823872,0.00029919,2]
[328163197,1716974966129,-151.0,0.00029919,2]
[328163198,1716974966149,-427.347672,0.00029919,2]
[328163199,1716974966169,-427.347672,0.00029919,2]
[328163200,1716974966190,-151.0,0.00029919,2]
[328163201,1716974966210,-160.879352,0.00029919,2]
[328163202,1716974966231,-151.0,0.00029919,2]
[328163203,1716974966252,-151.0,0.00029919,2]
[328163204,1716974966272,-1675.555146,0.00029919,2]
[328163205,1716974966293,-1675.555146,0.00029919,2]
[328163206,1716974966313,-601.083541,0.00029919,2]
[328163207,1716974966336,-660.665091,0.0002994,2]
[328163208,1716974966357,-952.913582,0.0002994,2]
[328163209,1716974966379,-952.913582,0.0002994,2]
[328163210,1716974966406,-660.665091,0.0002994,2]
[328163211,1716974966427,-151.0,0.0002994,2]
[328163212,1716974966448,-151.0,0.0002994,2]